{"text_format":"1","workbook":"xlsx","n_sheets":6,"sheets":["CLASSIFICAÇÃO GERAL 2025","ago2025","set2025","out2025","nov2025","dez2025"],"not_rendered":{"charts":0,"images":2,"macros":1,"external_links":0,"defined_names":1,"comments":0,"pivot_tables":0},"unopened":[],"bounds":{"document_bytes":16777216,"sheet_cells":100000,"rows_first":2000,"rows_last":500,"rows_between":2000,"halvings":0,"cell_chars":16384,"cell_head_chars":4096},"cells_cut":0,"cells_raw":0,"read":"whole","date_system":"1900"}

{"sheet":"CLASSIFICAÇÃO GERAL 2025","index":0,"n_rows":133,"n_cols":5,"rows_kept":133,"cut":false,"hidden":false,"merged":[[0,0,0,4],[1,0,1,4]]}
["CLASSIFICAÇÃO GERAL ACPA – TEMPORADA 2025 QUARTA"]
["COLEIRO FIBRA","Pássaro","Proprietário","Origem","Pontos"]
["POSIÇÃO","NOME DO PÁSSARO","NOME DO PROPRIETÁRIO","ORIGEM (CIDADE)","PONTUAÇÃO"]
["1º","BALINHA","WL FAMÍLIA MINGAL","PARAÍBA DO SUL",{"$f":"23+20+18+19+24+23+22+24+30+26+19+21+16+18","v":303}]
["2º","PANTERA NEGRA","PABLO","ITAIPAVA",{"$f":"26+23+26+26+24+23+23+26+18+26","v":241}]
["3º","MAGNÍFICO","CH FAMÍLIA MINGAL","PARAÍBA DO SUL",{"$f":"26+22+21+18+17+17+13+21+13+30+24","v":222}]
["4º","TRUQUE","REGINALDO","PETRÓPOLIS",{"$f":"20+17+30+26+28+20+28+14+14","v":197}]
["5º","FOGUETE","GABRIEL/LEANDRO","PARAÍBA DO SUL",{"$f":"21+15+22+15+28+20+18+19+20","v":178}]
["6º","DO BRONX","PABLO","PETRÓPOLIS",{"$f":"22+28+28+16+15+17+22","v":148}]
["7º","PIVETE","GILSON/GUSTAVO","S. DUMONT/TRÊS RIOS",{"$f":"16+16+14+16+17+14+18+24","v":135}]
["8º","PODEROSO CHEFINHO","RODRIGO/BRUNO","PETRÓPOLIS",{"$f":"22+21+19+18+17","v":97}]
["9º","GATILHO","PEDRO","JUIZ DE FORA",{"$f":"30+30+28","v":88}]
["10º","CHARADA","UESLEI","PARAÍBA DO SUL",{"$f":"24+23+13+13+14","v":87}]
["11º","CHUCALHO DE COBRA","LUCIMAR/L. HENRIQUE","TRÊS RIOS",{"$f":"30+30+24","v":84}]
["12º","FARRAPO DOIDO","JOÃO MARCOS","AREAL",{"$f":"22+21+18+17","v":78}]
["13º","FARAÓ","ANDRÉ/ERICK","PARAÍBA DO SUL",{"$f":"28+28+21","v":77}]
["14º","TUBARÃO","RONYELLE","TRÊS RIOS",{"$f":"18+17+18+19","v":72}]
["15º","FORASTEIRO","WL FAMÍLIA MINGAL","PARAÍBA DO SUL",{"$f":"23+23+21","v":67}]
["16º","CARRASCO","DANILO MOREIRA","TRÊS RIOS",{"$f":"17+21+24","v":62}]
["17º","PAVAROTTI","DOUGLAS/RAFAEL TOP DA GAIOLAS","JUIZ DE FORA",{"$f":"26+30","v":56}]
["18º","FÓRMULA 1","REGINALDO","PETRÓPOLIS",{"$f":"23+28","v":51}]
["19º","GARGALHADA","CICINHO","PARAÍBA DO SUL",{"$f":"19+13+19","v":51}]
["20º","IMPERADOR","LEANDRO/GABRIEL","PARAÍBA DO SUL",{"$f":"20+28","v":48}]
["21º","JÓ","ANDRÉ LUIS","PARAÍBA DO SUL",{"$f":"30+17","v":47}]
["22º","REI DO FURDUNÇO","WILLIAN","TRÊS RIOS",{"$f":"21+24","v":45}]
["23º","EXPRESSO","RAUANI VALLE","TRÊS RIOS",{"$f":"16+23","v":39}]
["24º","TROVÃO","LUCIMAR/LUIZ HENRIQUE","TRÊS RIOS",{"$f":"13+24","v":37}]
["25º","DELEGADO","KAUAN","PATY DO ALFERES",{"$f":"21+15","v":36}]
["26º","OURO FINO","LUCAS","TRÊS RIOS",{"$f":"22+14","v":36}]
["27º","XODO","GUSTAVO/GILSON","TRÊS RIOS/S. DUMONT",{"$f":"16+20","v":36}]
["28º","BINHA PRETO","EULER","TRÊS RIOS",{"$f":"16+19","v":35}]
["29º","SAMA","LUCAS","TRÊS RIOS",{"$f":"13+21","v":34}]
["30º","JAMELÃO","CH FAMÍLIA MINGAL","PARAÍBA DO SUL",{"$f":"17+15","v":32}]
["31º","RAGNAR","DANILO MOREIRA","TRÊS RIOS",{"$f":"18+14","v":32}]
["32º","SONIC","CT ALPHA","PARAÍBA DO SUL",{"$f":"15+16","v":31}]
["33º","51","DANIEL","JUIZ DE FORA",30]
["34º","BICO DE PRATA","GUSTAVO","PARAÍBA DO SUL",{"$f":"17+13","v":30}]
["35º","COMENDADOR","PEDRO","JUIZ DE FORA",30]
["36º","DIGNO","JUNINHO/JÚLIO","TRÊS RIOS",30]
["37º","LEÃO BRANCO","CUNHA","CARATINGA",30]
["38º","MUTLEY","MARCÃO","JUIZ DE FORA",30]
["39º","PRESTÍGIO","RUAN","PARAÍBA DO SUL",{"$f":"15+15","v":30}]
["40º","URSO NEGRO","JUNINHO PACHECO","TRÊS RIOS",30]
["41º","ÊXTASE","KLEBER","AREAL",28]
["42º","FANTÁSTICO","FELIPE CRECK","MIGUEL PEREIRA",28]
["43º","FÉ","MARCÃO","JUIZ DE FORA",28]
["44º","GABIGOL","RAPHAEL/ROGÉRIO","MATIAS BARBOSA",28]
["45º","MANDA CHUVA","JULIO","MIGUEL PEREIRA",28]
["46º","BOTA CARA","GABRIEL/DJ RODRIGO","PARAÍBA DO SUL",26]
["47º","FILHOTE","FAMÍLIA MINGAL","PARAÍBA DO SUL",26]
["48º","MEGAMENTE","FLÁVIO","PATY DO ALFERES",26]
["49º","NEXTEL","NATHAN","LEVY GASPARIAN",26]
["50º","PÉROLA NEGRA","ROMÁRIO OLIVEIRA","PETRÓPOLIS",26]
["51º","REI DA RUA","ANDRÉ LUIS","PARAÍBA DO SUL",26]
["52º","JIRAIA","GABRIEL/THIAGO","PARAÍBA DO SUL",24]
["53º","K2","PEDRO/GUSTAVO","JUIZ DE FORA",24]
["54º","MALOQUINHA","ERICK","MATIAS BARBOSA",24]
["55º","PINTA NEGRA","RATINHO","VALENÇA",24]
["56º","RENEGADO","GABRIEL","PETRÓPOLIS",24]
["57º","762","DEIVID","JUIZ DE FORA",23]
["58º","JÓIA RARA","GILSON/GUSTAVO","TRÊS RIOS/S. DUMONT",23]
["59º","MAVERICK","ANDRÉ LUIS","PARAÍBA DO SUL",23]
["60º","REMI NETO","RAFAEL","PARAÍBA DO SUL",23]
["61º","SHOGUN","REGINALDO","PETRÓPOLIS",23]
["62º","DIAMANTE BLACK","RAFAEL","JUIZ DE FORA",22]
["63º","DUBAI","BRUNO","TRÊS RIOS",22]
["64º","PERIGO","JOANES","PARAÍBA DO SUL",22]
["65º","ROMÁRIO","MÁRCIO","PARAÍBA DO SUL",22]
["66º","SHEIK","JONAS","TRÊS RIOS",22]
["67º","TAURUS","HENRIQUE","ANTA",22]
["68º","V10","JÚNIOR PACHECO","TRÊS RIOS",22]
["69º","ALMEJADO","GABRIEL/DJ RODRIGO","PARAÍBA DO SUL",21]
["70º","BMW","JOÃO PEDRO","PARAÍBA DO SUL",21]
["71º","MAGO","CLÓVIS","TRÊS RIOS",21]
["72º","ABISMO","GUSTAVO/JHONATA","PARAÍBA DO SUL",20]
["73º","ABRAÃO","WILLIAN","MATIAS BARBOSA",20]
["74º","BELGA","KLEBER SILVA","PETRÓPOLIS",20]
["75º","É O AÇO","RODRIGO","VASSOURAS",20]
["76º","EL DOIDO","JONAS","TRÊS RIOS",20]
["77º","INVASÃO","WATILA","JUIZ DE FORA",20]
["78º","NOVINHO","XEIA","PATY DO ALFERES",20]
["79º","YTACHI","DERLANE","UBA",20]
["80º","ABUSADO","ELVIS","JUIZ DE FORA",19]
["81º","GOKU","LEONARDO","SANTOS DUMONT",19]
["82º","GUERREIRO","ANTÔNIO MENEGUIT","CACHOEIRAS DE MACACU",19]
["83º","NATURAL","FERNANDO","PETRÓPOLIS",19]
["84º","PETER PAN","RAFAEL","PARAÍBA DO SUL",19]
["85º","RABO DE PEIXE","LUCIMAR/L. HENRIQUE","TRÊS RIOS",19]
["86º","RED BULL","JUNIN","JUIZ DE FORA",19]
["87º","GUERREIRO","UELINTON TOM","TRÊS RIOS",18]
["88º","MALUCO BELEZA","ZAL","JUIZ DE FORA",18]
["89º","PESADELO","HENRIQUE","ANTA",18]
["90º","RARIDADE","CT ALPHA","PARAÍBA DO SUL",18]
["91º","BELGA","RODRIGO/BRUNO","PETRÓPOLIS",17]
["92º","HERÓI DE GUERRA","RODRIGO/BRUNO","PETRÓPOLIS",17]
["93º","MENINO DO MORRO","GABRIEL/VLADIMIR","PARAÍBA DO SUL",17]
["94º","ANIMAL","DANILO","TRÊS RIOS",16]
["95º","BICO BRANCO","LOIRIN","PARAÍBA DO SUL",16]
["96º","FIEL","DANIEL","JUIZ DE FORA",16]
["97º","PIRATA","ROMÁRIO OLIVEIRA","PETRÓPOLIS",16]
["98º","SHARK","DINO","MATIAS BARBOSA",16]
["99º","TREM","MARCO AURÉLIO","PARAÍBA DO SUL",16]
["100º","BISON","NATHAN","LEVY GASPARIAN",15]
["101º","ESCOBAR","XEIA","PATY DO ALFERES",15]
["102º","GARNIZE","PABLO","ITAIPAVA",15]
["103º","SAGA","MARQUINHO","TRÊS RIOS",15]
["104º","TET","THIAGO/RONYELLE","TRÊS RIOS",15]
["105º","VALE TUDO","MANDÍBULA","PETRÓPOLIS",15]
["106º","ZÉ INACIO","EULER","TRÊS RIOS",15]
["107º","ABUTRE","RODRIGO/BRUNO","PETRÓPOLIS",14]
["108º","BOLT","RODRIGO/BRUNO","PETRÓPOLIS",14]
["109º","FRAGMENTO","MANDÍBULA","PETRÓPOLIS",14]
["110º","GAROTO","BRUNO","TRÊS RIOS",14]
["111º","MALIBU","NICOLAS","PETRÓPOLIS",14]
["112º","RAT","THIAGO/RONYELLE","TRÊS RIOS",14]
["113º","WOLVERINE","XANDÃO","PARAÍBA DO SUL",14]
["114º","WOLVERINE","KAUAN","PATY DO ALFERES",14]
["115º","CARRASCO","LUCAS","TRÊS RIOS",13]
["116º","DUBAI","VALDO","TRÊS RIOS",13]
["117º","MAESTRO","GABRIEL/PAIVA","PARAÍBA DO SUL",13]
["118º","MÁQUINA JR","GABRIEL/EDILSON","PETRÓPOLIS",13]
["119º","VENENO","XANDI","?",13]
["120º","XODÓ","CLÓVIS","TRÊS RIOS",13]
["121º"]
["122º"]
["123º"]
["124º"]
["125º"]
["126º"]
["127º"]
["128º"]
["129º"]
["130º"]

{"sheet":"ago2025","index":1,"n_rows":22,"n_cols":27,"rows_kept":22,"cut":false,"hidden":false,"merged":[[0,0,0,5],[0,7,0,12],[0,14,0,19],[0,21,0,26]]}
["06/08/2025 (QUARTA-FEIRA)",null,null,null,null,null,null,"13/08/2025 (QUARTA-FEIRA)",null,null,null,null,null,null,"20/08/2025 (QUARTA-FEIRA)",null,null,null,null,null,null,"27/08/2025 (QUARTA-FEIRA)"]
["POS.","PÁSSARO","PROPRIETÁRIO","ORIGEM","CANTOS","PONTOS",null,"POS.","PÁSSARO","PROPRIETÁRIO","ORIGEM","CANTOS","PONTOS",null,"POS.","PÁSSARO","PROPRIETÁRIO","ORIGEM","CANTOS","PONTOS",null,"POS.","PÁSSARO","PROPRIETÁRIO","ORIGEM","CANTOS","PONTOS"]
["1º","VIDIGAL","MARCELO","TRÊS RIOS",144,30,null,"1º","BYD","RUAN FERREIRA","MAR DE ESPANHA",216,30,null,"1º","JOIA RARA","JUNINHO","TRÊS RIOS",200,30,null,"1º","CHARADA","HENRIQUE","PARAÍBA DO SUL",181,30]
["2º","KAISER","RODRIGO/BRUNO","PETRÓPOLIS",142,28,null,"2º","22 MALUCO","BIDU","PATY DO ALFERES",169,28,null,"2º","TUBARÃO","RONYELLE","TRÊS RIOS",143,28,null,"2º","FARRAPO DOIDO","RODRIGO/BRUNO","PETRÓPOLIS",137,28]
["3º","JAMELÃO","CH FAMÍLIA MINGAL","PARAÍBA DO SUL",116,26,null,"3º","CHUCALHO DE COBRA","LUCIMAR/LUIZ HENRIQUE","TRÊS RIOS",167,26,null,"3º","VENENO","LEANDRO/GABRIEL","PARAÍBA DO SUL",129,26,null,"3º","TENEBROSO","JONAS","TRÊS RIOS",125,26]
["4º","MAGNÍFICO","CH FAMÍLIA MINGAL","PARAÍBA DO SUL",97,24,null,"4º","CARRASCO","RAFAEL POPÓ","TRÊS RIOS",142,24,null,"4º","DONATELLO","DANIEL/JOÃO PEDRO","PARAÍBA DO SUL",127,24,null,"4º","CICATRIZ","DOUGLAS","JUIZ DE FORA",120,24]
["5º","CALIBRE 12","HENRIQUE","ANTA",90,23,null,"5º","KAISER","RODRIGO/BRUNO","PETRÓPOLIS",140,23,null,"5º","TENEBROSO","JONINHA","TRÊS RIOS",120,23,null,"5º","TUBARÃO","RONYELLE","TRÊS RIOS",113,23]
["6º","FÚRIA","KLEBER","AREAL",62,22,null,"6º","REI DA RUA","ANDRÉ AGUIAR","PARAÍBA DO SUL",132,22,null,"6º","CAVIAR","BRUNO","TRÊS RIOS",94,22,null,"6º","MENTOR","JOÃO MARCOS","AREAL",109,22]
["7º",null,null,null,null,null,null,"7º","ZÉ INACIO","EULER","TRÊS RIOS",132,21,null,"7º","ARCANJO","FAMÍLIA MINGAL","PARAÍBA DO SUL",88,21,null,"7º","CAVIAR","BRUNO","TRÊS RIOS",104,21]
["8º",null,null,null,null,null,null,"8º","FARRAPO DOIDO","RODRIGO/BRUNO","PETRÓPOLIS",127,20,null,"8º","FAIXA PRETA","JANDERSON","TRÊS RIOS",81,20,null,"8º","NOVINHO","MARCELO XEIA","PATY DO ALFERES",97,20]
["9º",null,null,null,null,null,null,"9º","LIGEIRO","ANDERSON","RIO DE JANEIRO",125,19,null,"9º","CABALLO","GILSON/GUSTAVO","S. DUMONT/TRÊS RIOS",62,19,null,"9º","ABUTRE","JOÃO MARCOS","AREAL",92,19]
["10º",null,null,null,null,null,null,"10º","ABUTRE","JOÃO MARCOS","AREAL",104,18,null,"10º",null,null,null,null,null,null,"10º","OZI","HENRIQUE","ANTA",88,18]
["11º",null,null,null,null,null,null,"11º","ZUMBI","FAMÍLIA HONORATO","PARAÍBA DO SUL",92,17,null,"11º",null,null,null,null,null,null,"11º","RABO DE PEIXE","LUCIMAR/LUIZ HENRIQUE","TRÊS RIOS",83,17]
["12º",null,null,null,null,null,null,"12º","FREE FIRE","VITOR","TRÊS RIOS",92,16,null,"12º",null,null,null,null,null,null,"12º","LELEI","EULER","TRÊS RIOS",81,16]
["13º",null,null,null,null,null,null,"13º","CALIBRE 12","HENRIQUE","?",86,15,null,"13º",null,null,null,null,null,null,"13º","ESCOBAR","MARCELO XEIA","PATY DO ALFERES",77,15]
["14º",null,null,null,null,null,null,"14º","ABUSADO","BRUNO","MIGUEL PEREIRA",73,14,null,"14º",null,null,null,null,null,null,"14º","TONINHO","SANDRO","ANTA",76,14]
["15º",null,null,null,null,null,null,"15º",null,null,null,null,null,null,"15º",null,null,null,null,null,null,"15º","VENON","MURILO","TRÊS RIOS",72,13]
["16º",null,null,null,null,null,null,"16º",null,null,null,null,null,null,"16º",null,null,null,null,null,null,"16º","WOLVERINE","XANDÃO","TRÊS RIOS",60]
["17º",null,null,null,null,null,null,"17º",null,null,null,null,null,null,"17º",null,null,null,null,null,null,"17º","MALTE","GILBERSON DO VALLLE","TRÊS RIOS",36]
["18º",null,null,null,null,null,null,"18º",null,null,null,null,null,null,"18º",null,null,null,null,null,null,"18º"]
["19º",null,null,null,null,null,null,"19º",null,null,null,null,null,null,"19º",null,null,null,null,null,null,"19º"]
["20º",null,null,null,null,null,null,"20º",null,null,null,null,null,null,"20º",null,null,null,null,null,null,"20º"]

{"sheet":"set2025","index":2,"n_rows":42,"n_cols":27,"rows_kept":42,"cut":false,"hidden":false,"merged":[[0,0,0,5],[0,7,0,12],[0,14,0,19],[0,21,0,26]]}
["03/09/2025 (QUARTA-FEIRA)",null,null,null,null,null,null,"10/09/2025 (QUARTA-FEIRA)",null,null,null,null,null,null,"17/09/2025 (QUARTA-FEIRA)",null,null,null,null,null,null,"24/09/2025 (QUARTA-FEIRA)"]
["POS.","PÁSSARO","PROPRIETÁRIO","ORIGEM","CANTOS","PONTOS",null,"POS.","PÁSSARO","PROPRIETÁRIO","ORIGEM","CANTOS","PONTOS",null,"POS.","PÁSSARO","PROPRIETÁRIO","ORIGEM","CANTOS","PONTOS",null,"POS.","PÁSSARO","PROPRIETÁRIO","ORIGEM","CANTOS","PONTOS"]
["1º","CHUCALHO DE COBRA","LUCIMAR/L. HENRIQUE","TRÊS RIOS",165,30,null,"1º","CHUCALHO DE COBRA","LUCIMAR/LUIZ HENRIQUE","TRÊS RIOS",181,30,null,"1º","MUTLEY","MARCÃO","JUIZ DE FORA",280,30,null,"1º","PAVAROTTI","DOUGLAS/RAFAEL TOP DA GAIOLAS","JUIZ DE FORA",221,30]
["2º","MANDA CHUVA","JULIO","MIGUEL PEREIRA",128,28,null,"2º","FANTÁSTICO","FELIPE CRECK","MIGUEL PEREIRA",135,28,null,"2º","FARÃO","ANDRÉ/ERICK","PARAÍBA DO SUL",192,28,null,"2º","FÓRMULA 1","REGINALDO","PETRÓPOLIS",180,28]
["3º","MAGNÍFICO","CH FAMÍLIA MINGAL","PARAÍBA DO SUL",128,26,null,"3º","BOTA CARA","GABRIEL/DJ RODRIGO","PARAÍBA DO SUL",134,26,null,"3º","PAVAROTTI","DOUGLAS","JUIZ DE FORA",173,26,null,"3º","REI DA RUA","ANDRÉ LUIS","PARAÍBA DO SUL",167,26]
["4º","CHARADA","HENRIQUE","PARAÍBA DO SUL",125,24,null,"4º","PINTA NEGRA","RATINHO","VALENÇA",128,24,null,"4º","CARRASCO","DANILO MOREIRA","TRÊS RIOS",163,24,null,"4º","TROVÃO","LUCIMAR/LUIZ HENRIQUE","TRÊS RIOS",137,24]
["5º","BALINHA","FAMÍLIA MINGAL","PARAÍBA DO SUL",124,23,null,"5º","CHARADA","HENRIQUE","PARAÍBA DO SUL",125,23,null,"5º","FÓRMULA 1","REGINALDO","PETRÓPOLIS",145,23,null,"5º","FORASTEIRO","WL FAMÍLIA MINGAL","PARAÍBA DO SUL",135,23]
["6º","DIAMANTE BLACK","RAFAEL","JUIZ DE FORA",120,22,null,"6º","MAGNÍFICO","CH FAMÍLIA MINGAL","PARAÍBA DO SUL",117,22,null,"6º","FARRAPO DOIDO","RODRIGO/BRUNO","PETRÓPOLIS",144,22,null,"6º","DUBAI","BRUNO","TRÊS RIOS",131,22]
["7º","DELEGADO","KAUAN","PATY DO ALFERES",117,21,null,"7º","CARRASCO","DANILO MOREIRA","TRÊS RIOS",112,21,null,"7º","MAGNÍFICO","CH FAMÍLIA MINGAL","PARAÍBA DO SUL",140,21,null,"7º","BMW","JOÃO PEDRO","PARAÍBA DO SUL",130,21]
["8º","NOVINHO","XEIA","PATY DO ALFERES",115,20,null,"8º","BALINHA","WL FAMÍLIA MINGAL","PARAÍBA DO SUL",108,20,null,"8º","TRUQUE","REGINALDO","PETRÓPOLIS",137,20,null,"8º","YTACHI","DERLANE","UBA",121,20]
["9º","RABO DE PEIXE","LUCIMAR/L. HENRIQUE","TRÊS RIOS",110,19,null,"9º","NATURAL","FERNANDO","PETRÓPOLIS",100,19,null,"9º","ABUSADO","ELVIS","JUIZ DE FORA",136,19,null,"9º","BALINHA","WL FAMÍLIA MINGAL","PARAÍBA DO SUL",120,19]
["10º","TUBARÃO","RONYELLE","TRÊS RIOS",109,18,null,"10º","GUERREIRO","UELINTON TOM","TRÊS RIOS",100,18,null,"10º","BALINHA","WL FAMÍLIA MINGAL","PARAÍBA DO SUL",125,18,null,"10º","TUBARÃO","RONYELLE","TRÊS RIOS",120,18]
["11º","CARRASCO","DANILO","TRÊS RIOS",86,17,null,"11º","TUBARÃO","RONYELLE","TRÊS RIOS",84,17,null,"11º","BELGA","RODRIGO/BRUNO","PETRÓPOLIS",124,17,null,"11º","TRUQUE","REGINALDO","PETRÓPOLIS",109,17]
["12º","BICO BRANCO","LOIRIN","PARAÍBA DO SUL",85,16,null,"12º","PIVETE","GILSON/GUSTAVO","S. DUMONT/TRÊS RIOS",81,16,null,"12º","PIVETE","GUSTAVO/GILSON","TRÊS RIOS",115,16,null,"12º","XODO","GUSTAVO/GILSON","TRÊS RIOS/S. DUMONT",109,16]
["13º","ESCOBAR","XEIA","PATY DO ALFERES",72,15,null,"13º","SAGA","MARQUINHO","TRÊS RIOS",78,15,null,"13º","VALE TUDO","MANDÍBULA","PETRÓPOLIS",110,15,null,"13º","ZÉ INACIO","EULER","TRÊS RIOS",108,15]
["14º","WOLVERINE","XANDÃO","PARAÍBA DO SUL",63,14,null,"14º","GAROTO","BRUNO","TRÊS RIOS",72,14,null,"14º","FRAGMENTO","MANDÍBULA","PETRÓPOLIS",108,14,null,"14º","PIVETE","GILSON/GUSTAVO","S. DUMONT/TRÊS RIOS",107,14]
["15º",null,null,null,null,null,null,"15º","MÁQUINA JR","GABRIEL/EDILSON","PETRÓPOLIS",60,13,null,"15º","TROVÃO","LUCIMAR/LUIZ HENRIQUE","TRÊS RIOS",107,13,null,"15º","MAESTRO","GABRIEL/PAIVA","PARAÍBA DO SUL",107,13]
["16º",null,null,null,null,null,null,"16º","BRT","SANDRO","ANTA",57,null,null,"16º","FILHOTE","FAMÍLIA MINGAL","PARAÍBA DO SUL",105,null,null,"16º","CHARADA","HENRIQUE","PARAÍBA DO SUL",102]
["17º",null,null,null,null,null,null,"17º",null,null,null,null,null,null,"17º","ABENÇOADO","RAFAEL","JUIZ DE FORA",104,null,null,"17º","HULK","CH FAMÍLIA MINGAL","PARAÍBA DO SUL",100]
["18º",null,null,null,null,null,null,"18º",null,null,null,null,null,null,"18º","MARTELETE","JONAS","TRÊS RIOS",101,null,null,"18º","MESSI","JONAS","TRÊS RIOS",97]
["19º",null,null,null,null,null,null,"19º",null,null,null,null,null,null,"19º","BOLSONARO","DJALMINHA","SAPUCAIA",100,null,null,"19º","MAGNÍFICO","CH FAMÍLIA MINGAL","PARAÍBA DO SUL",95]
["20º",null,null,null,null,null,null,"20º",null,null,null,null,null,null,"20º","BRT","SANDRO","ANTA",93,null,null,"20º","RENEGADO","HENRIQUE","ANTA",91]
["21º",null,null,null,null,null,null,"21º",null,null,null,null,null,null,"21º","GUERREIRO","ANTÔNIO MENEGUIT","CACHOEIRAS DE MACACU",91,null,null,"21º","VENON","MURILO","TRÊS RIOS",85]
["22º",null,null,null,null,null,null,"22º",null,null,null,null,null,null,"22º","BRUXO","FAMÍLIA MINGAL","PARAÍBA DO SUL",75,null,null,"22º","BELGA","RODRIGO/BRUNO","PETRÓPOLIS",81]
["23º",null,null,null,null,null,null,"23º",null,null,null,null,null,null,"23º","MENINO MALUCO","BRUNO","TRÊS RIOS",67,null,null,"23º","BRT","SANDRO","ANTA",70]
["24º",null,null,null,null,null,null,"24º",null,null,null,null,null,null,"24º","OLODUM","AMILTON","JUIZ DE FORA",50,null,null,"24º","RARIDADE","GUSTAVO/JHONATA","PARAÍBA DO SUL",58]
["25º",null,null,null,null,null,null,"25º",null,null,null,null,null,null,"25º","CHARADA","HENRIQUE","PARAÍBA DO SUL",48,null,null,"25º","MAGISTRAL","REGINALDO","PETRÓPOLIS",53]
["26º",null,null,null,null,null,null,"26º",null,null,null,null,null,null,"26º",null,null,null,null,null,null,"26º","SHEREK","JONAS","TRÊS RIOS",31]
["27º",null,null,null,null,null,null,"27º",null,null,null,null,null,null,"27º",null,null,null,null,null,null,"27º"]
["28º",null,null,null,null,null,null,"28º",null,null,null,null,null,null,"28º",null,null,null,null,null,null,"28º"]
["29º",null,null,null,null,null,null,"29º",null,null,null,null,null,null,"29º",null,null,null,null,null,null,"29º"]
["30º",null,null,null,null,null,null,"30º",null,null,null,null,null,null,"30º",null,null,null,null,null,null,"30º"]
["31º",null,null,null,null,null,null,"31º",null,null,null,null,null,null,"31º",null,null,null,null,null,null,"31º"]
["32º",null,null,null,null,null,null,"32º",null,null,null,null,null,null,"32º",null,null,null,null,null,null,"32º"]
["33º",null,null,null,null,null,null,"33º",null,null,null,null,null,null,"33º",null,null,null,null,null,null,"33º"]
["34º",null,null,null,null,null,null,"34º",null,null,null,null,null,null,"34º",null,null,null,null,null,null,"34º"]
["35º",null,null,null,null,null,null,"35º",null,null,null,null,null,null,"35º",null,null,null,null,null,null,"35º"]
["36º",null,null,null,null,null,null,"36º",null,null,null,null,null,null,"36º",null,null,null,null,null,null,"36º"]
["37º",null,null,null,null,null,null,"37º",null,null,null,null,null,null,"37º",null,null,null,null,null,null,"37º"]
["38º",null,null,null,null,null,null,"38º",null,null,null,null,null,null,"38º",null,null,null,null,null,null,"38º"]
["39º",null,null,null,null,null,null,"39º",null,null,null,null,null,null,"39º",null,null,null,null,null,null,"39º"]
["40º",null,null,null,null,null,null,"40º",null,null,null,null,null,null,"40º",null,null,null,null,null,null,"40º"]

{"sheet":"out2025","index":3,"n_rows":42,"n_cols":34,"rows_kept":42,"cut":false,"hidden":false,"merged":[[0,0,0,5],[0,7,0,12],[0,14,0,19],[0,21,0,26],[0,28,0,33]]}
["01/10/2025 (QUARTA-FEIRA)",null,null,null,null,null,null,"08/10/2025 (QUARTA-FEIRA)",null,null,null,null,null,null,"15/10/2025 (QUARTA-FEIRA)",null,null,null,null,null,null,"22/10/2025 (QUARTA-FEIRA)",null,null,null,null,null,null,"29/10/2025 (QUARTA-FEIRA)"]
["POS.","PÁSSARO","PROPRIETÁRIO","ORIGEM","CANTOS","PONTOS",null,"POS.","PÁSSARO","PROPRIETÁRIO","ORIGEM","CANTOS","PONTOS",null,"POS.","PÁSSARO","PROPRIETÁRIO","ORIGEM","CANTOS","PONTOS",null,"POS.","PÁSSARO","PROPRIETÁRIO","ORIGEM","CANTOS","PONTOS",null,"POS.","PÁSSARO","PROPRIETÁRIO","ORIGEM","CANTOS","PONTOS"]
["1º","TRUQUE","REGINALDO","PETRÓPOLIS",146,30,null,"1º","GATILHO","PEDRO","JUIZ DE FORA",231,30,null,"1º","DIGNO","JUNINHO/JÚLIO","TRÊS RIOS",178,30,null,"1º","GATILHO","PEDRO","JUIZ DE FORA",227,30,null,"1º","COMENDADOR","PEDRO","JUIZ DE FORA",174,30]
["2º","ÊXTASE","KLEBER","AREAL",143,28,null,"2º","FARAÓ","ANDRÉ/ERICK","PARAÍBA DO SUL",184,28,null,"2º","DO BRONX","PABLO","ITAIPAVA",158,28,null,"2º","TRUQUE","REGINALDO","PETRÓPOLIS",165,28,null,"2º","DO BRONX","PABLO","ITAIPAVA",174,28]
["3º","FILHOTE","FAMÍLIA MINGAL","PARAÍBA DO SUL",141,26,null,"3º","PANTERA NEGRA","PABLO","ITAIPAVA",174,26,null,"3º","TRUQUE","REGINALDO","PETRÓPOLIS",151,26,null,"3º","PANTERA NEGRA","PABLO","ITAIPAVA",149,26,null,"3º","PANTERA NEGRA","PABLO","ITAIPAVA",158,26]
["4º","BALINHA","WL FAMÍLIA MINGAL","PARAÍBA DO SUL",138,24,null,"4º","JIRAIA","GABRIEL/THIAGO","PARAÍBA DO SUL",149,24,null,"4º","MALOQUINHA","ERICK","MATIAS BARBOSA",140,24,null,"4º","BALINHA","WL FAMÍLIA MINGAL","PARAÍBA DO SUL",143,24,null,"4º","K2","PEDRO/GUSTAVO","JUIZ DE FORA",153,24]
["5º","SHOGUN","REGINALDO","PETRÓPOLIS",135,23,null,"5º","BALINHA","WL FAMÍLIA MINGAL","PARAÍBA DO SUL",146,23,null,"5º","PANTERA NEGRA","PABLO","ITAIPAVA",139,23,null,"5º","REMI NETO","RAFAEL","PARAÍBA DO SUL",142,23,null,"5º","JÓIA RARA","GILSON/GUSTAVO","TRÊS RIOS/S. DUMONT",144,23]
["6º","SHEIK","JONAS","TRÊS RIOS",119,22,null,"6º","DO BRONX","PABLO","ITAIPAVA",145,22,null,"6º","BALINHA","WL FAMÍLIA MINGAL","PARAÍBA DO SUL",137,22,null,"6º","FOGUETE","LEANDRO/GABRIEL","PARAÍBA DO SUL",141,22,null,"6º","PODEROSO CHEFINHO","RODRIGO/BRUNO","PETRÓPOLIS",133,22]
["7º","FOGUETE","GABRIEL/LEANDRO","PARAÍBA DO SUL",118,21,null,"7º","SAMA","LUCAS","TRÊS RIOS",143,21,null,"7º","FARRAPO DOIDO","JOÃO MARCOS","AREAL",136,21,null,"7º","ALMEJADO","GABRIEL/DJ RODRIGO","PARAÍBA DO SUL",141,21,null,"7º","MAGNÍFICO","CH FAMÍLIA MINGAL","PARAÍBA DO SUL",132,21]
["8º","ABRAÃO","WILLIAN","MATIAS BARBOSA",117,20,null,"8º","ABISMO","GUSTAVO/JHONATA","PARAÍBA DO SUL",133,20,null,"8º","XODÓ","GUSTAVO/GILSON","TRÊS RIOS/S. DUMONT",135,20,null,"8º","INVASÃO","WATILA","JUIZ DE FORA",139,20,null,"8º","TRUQUE","REGINALDO","PETRÓPOLIS",129,20]
["9º","GUERREIRO","ANTÔNIO MENEGUIT","CACHOEIRAS DE MACACU",116,19,null,"9º","PETER PAN","RAFAEL","PARAÍBA DO SUL",132,19,null,"9º","GARGALHADA","CICINHO","PARAÍBA DO SUL",134,19,null,"9º","BINHA PRETO","EULER","TRÊS RIOS",134,19,null,"9º","TUBARÃO","RONYELLE","TRÊS RIOS",126,19]
["10º","MAGNÍFICO","CH FAMÍLIA MINGAL","PARAÍBA DO SUL",114,18,null,"10º","MALUCO BELEZA","ZAL","JUIZ DE FORA",129,18,null,"10º","PESADELO","HENRIQUE","ANTA",130,18,null,"10º","FARRAPO DOIDO","JOÃO MARCOS","AREAL",131,18,null,"10º","RAGNAR","DANILO MOREIRA","TRÊS RIOS",122,18]
["11º","JAMELÃO","CH FAMÍLIA MINGAL","PARAÍBA DO SUL",114,17,null,"11º","MAGNÍFICO","CH FAMÍLIA MINGAL","PARAÍBA DO SUL",128,17,null,"11º","MAGNÍFICO","CH FAMÍLIA MINGAL","PARAÍBA DO SUL",130,17,null,"11º","PIVETE","GILSON/GUSTAVO","TRÊS RIOS/S. DUMONT",130,17,null,"11º","BICO DE PRATA","GUSTAVO","PARAÍBA DO SUL",115,17]
["12º","PIVETE","GILSON/GUSTAVO","TRÊS RIOS/S. DUMONT",111,16,null,"12º","BINHA PRETO","EULER","TRÊS RIOS",128,16,null,"12º","FIEL","DANIEL","JUIZ DE FORA",128,16,null,"12º","SHARK","DINO","MATIAS BARBOSA",129,16,null,"12º","SONIC","CT ALPHA","PARAÍBA DO SUL",113,16]
["13º","BISON","NATHAN","LEVY GASPARIAN",107,15,null,"13º","JAMELÃO","CH FAMÍLIA MINGAL","PARAÍBA DO SUL",126,15,null,"13º","FOGUETE","LEANDRO/GABRIEL","PARAÍBA DO SUL",126,15,null,"13º","SONIC","CT ALPHA","PARAÍBA DO SUL",127,15,null,"13º","TET","THIAGO/RONYELLE","TRÊS RIOS",110,15]
["14º","BOLT","RODRIGO/BRUNO","PETRÓPOLIS",107,14,null,"14º","WOLVERINE","KAUAN","PATY DO ALFERES",119,14,null,"14º","MALIBU","NICOLAS","PETRÓPOLIS",121,14,null,"14º","ABUTRE","RODRIGO/BRUNO","PETRÓPOLIS",126,14,null,"14º","PIVETE","GILSON/GUSTAVO","TRÊS RIOS/S. DUMONT",103,14]
["15º","SAMA","LUCAS","TRÊS RIOS",105,13,null,"15º","CHARADA","HENRIQUE","PARAÍBA DO SUL",118,13,null,"15º","CHARADA","HENRIQUE/CH","PARAÍBA DO SUL",107,13,null,"15º","MAGNÍFICO","CH FAMÍLIA MINGAL","PARAÍBA DO SUL",115,13,null,"15º","CARRASCO","LUCAS","TRÊS RIOS",103,13]
["16º","RARIDADE","GUSTAVO/JHONATA","PARAÍBA DO SUL",98,null,null,"16º","PATRÃO","WL FAMÍLIA MINGAL","PARAÍBA DO SUL",115,null,null,"16º","WOLVERINE","KAUAN","PATY DO ALFERES",105,null,null,"16º","GARGALHADA","CICINHO","PARAÍBA DO SUL",113,null,null,"16º","FOGUETE","LEANDRO/GABRIEL","PARAÍBA DO SUL",101]
["17º","DUBAI","BRUNO","TRÊS RIOS",96,null,null,"17º","VENON JÚNIOR","MURILO","TRÊS RIOS",113,null,null,"17º","FILHOTE","FAMÍLIA MINGAL","PARAÍBA DO SUL",104,null,null,"17º","VENON JÚNIOR","MURILO","TRÊS RIOS",108,null,null,"17º","CHARADA","UESLEI","PARAÍBA DO SUL",100]
["18º","VENON JÚNIOR","MURILO","TRÊS RIOS",86,null,null,"18º","PIVETE","LISANDRO","VASSOURAS",111,null,null,"18º","DELEGADO","KAUAN","PATY DO ALFERES",102,null,null,"18º","CHARADA","JOSENILTON/GABRIEL MARTINS","PARAÍBA DO SUL",104,null,null,"18º","FERRARI","REGINALDO","PETRÓPOLIS",98]
["19º","JILÓ","WL FAMÍLIA MINGAL","PARAÍBA DO SUL",75,null,null,"19º","TRUQUE","REGINALDO","PETRÓPOLIS",110,null,null,"19º","LAMPIÃO","GABRIEL","PETRÓPOLIS",94,null,null,"19º","DUBAI","BRUNO","TRÊS RIOS",103,null,null,"19º","SEM LIMITE","GABRIEL/DJ RODRIGO","PARAÍBA DO SUL",98]
["20º","SANTA FÉ","GUSTAVO/GILSON","TRÊS RIOS/S. DUMONT",75,null,null,"20º","FOGUETE","LEANDRO/GABRIEL","PARAÍBA DO SUL",102,null,null,"20º","ABUTRE","RODRIGO/BRUNO","PETRÓPOLIS",93,null,null,"20º","CORUJA","KLEBER SILVA","PETRÓPOLIS",102,null,null,"20º","PARDAL","WL FAMÍLIA MINGAL","PARAÍBA DO SUL",86]
["21º","WOLVERINE","KAUAN","PATY DO ALFERES",70,null,null,"21º","PIVETE","GILSON/GUSTAVO","TRÊS RIOS/S. DUMONT",100,null,null,"21º","FERRARI","REGINALDO","PETRÓPOLIS",92,null,null,"21º","BOOBIE GOODY","EULER","TRÊS RIOS",102,null,null,"21º","BALINHA","WL FAMÍLIA MINGAL","PARAÍBA DO SUL",83]
["22º","BRT","SANDRO","ANTA",66,null,null,"22º","FUGITIVO","LUCIANO","PARAÍBA DO SUL",100,null,null,"22º","PIVETE","GUSTAVO/GILSON","TRÊS RIOS/S. DUMONT",86,null,null,"22º","DO BRONX","PABLO","ITAIPAVA",100,null,null,"22º","BISON","NATHAN","LEVY GASPARIAN",80]
["23º","MARTELETE","JONAS","TRÊS RIOS",53,null,null,"23º","BISON","NATHAN","LEVY GASPARIAN",94,null,null,"23º","RARIDADE","GUSTAVO/JHONATA","PARAÍBA DO SUL",78,null,null,"23º","REVOADA","VITINHO","JUIZ DE FORA",94,null,null,"23º","HULK","WILLIAN","TRÊS RIOS",76]
["24º","MENINO MALUCO","BRUNO","TRÊS RIOS",49,null,null,"24º","RÁPIDO","BRUNO","TRÊS RIOS",94,null,null,"24º","COBRA","EDU","TRÊS RIOS",70,null,null,"24º","IMPERADOR","GABRIEL","PETRÓPOLIS",93,null,null,"24º","REVELAÇÃO","ANTÔNIO MENEGUIT","CACHOEIRAS DE MACACU",76]
["25º",null,null,null,null,null,null,"25º","DUBAI","BRUNO","TRÊS RIOS",93,null,null,"25º","BICO DE PRATA","GUSTAVO","PARAÍBA DO SUL",62,null,null,"25º","220","LEANDRO/RUAN","PARAÍBA DO SUL",91,null,null,"25º","TAURUS","HENRIQUE","ANTA",66]
["26º",null,null,null,null,null,null,"26º","PISTOLA","CARLOS DENGO","PETRÓPOLIS",92,null,null,"26º","CORUJA","RODRIGO/BRUNO","PETRÓPOLIS",61,null,null,"26º","FERRARI","REGINALDO","PETRÓPOLIS",90,null,null,"26º","VENON","MURILO","TRÊS RIOS",43]
["27º",null,null,null,null,null,null,"27º","FILHOTE","FAMÍLIA MINGAL","PARAÍBA DO SUL",92,null,null,"27º","REVOADA","VITINHO","JUIZ DE FORA",40,null,null,"27º","VELOSTER","SOLDADO","NOVA IGUAÇU",87,null,null,"27º","IMPERADOR","GABRIEL","PETRÓPOLIS",37]
["28º",null,null,null,null,null,null,"28º","ATOM","LUIS FERNANDO","?",90,null,null,"28º","DA ROÇA","NATHAN","LEVY GASPARIAN",34,null,null,"28º","TUBARÃO","RONYELLE","TRÊS RIOS",84,null,null,"28º"]
["29º",null,null,null,null,null,null,"29º","GARNIZE","NICOLAS","PETRÓPOLIS",83,null,null,"29º",null,null,null,null,null,null,"29º","RARIDADE","GUSTAVO/JHONATA","PARAÍBA DO SUL",83,null,null,"29º"]
["30º",null,null,null,null,null,null,"30º","CIBORG","HENRIQUE","ANTA",78,null,null,"30º",null,null,null,null,null,null,"30º","COLISEU","GABRIEL/DJ RODRIGO","PARAÍBA DO SUL",80,null,null,"30º"]
["31º",null,null,null,null,null,null,"31º","ARO 20","CT DOS MOLEQUES","PARAÍBA DO SUL",76,null,null,"31º",null,null,null,null,null,null,"31º","PIRRALHO","TANIEL","?",79,null,null,"31º"]
["32º",null,null,null,null,null,null,"32º","PELÉ","WILLIAM","TRÊS RIOS",70,null,null,"32º",null,null,null,null,null,null,"32º","FILHOTE","FAMÍLIA MINGAL","PARAÍBA DO SUL",76,null,null,"32º"]
["33º",null,null,null,null,null,null,"33º","SPOCK","DANIEL/TIM","JUIZ DE FORA",66,null,null,"33º",null,null,null,null,null,null,"33º","HUGAL","WILLIAN","TRÊS RIOS",71,null,null,"33º"]
["34º",null,null,null,null,null,null,"34º","BRADDOCK","GUSTAVO/JHONATA","PARAÍBA DO SUL",65,null,null,"34º",null,null,null,null,null,null,"34º","PÂNICO","GABRIEL/VLADIMIR","PARAÍBA DO SUL",55,null,null,"34º"]
["35º",null,null,null,null,null,null,"35º",null,null,null,null,null,null,"35º",null,null,null,null,null,null,"35º",null,null,null,null,null,null,"35º"]
["36º",null,null,null,null,null,null,"36º",null,null,null,null,null,null,"36º",null,null,null,null,null,null,"36º",null,null,null,null,null,null,"36º"]
["37º",null,null,null,null,null,null,"37º",null,null,null,null,null,null,"37º",null,null,null,null,null,null,"37º",null,null,null,null,null,null,"37º"]
["38º",null,null,null,null,null,null,"38º",null,null,null,null,null,null,"38º",null,null,null,null,null,null,"38º",null,null,null,null,null,null,"38º"]
["39º",null,null,null,null,null,null,"39º",null,null,null,null,null,null,"39º",null,null,null,null,null,null,"39º",null,null,null,null,null,null,"39º"]
["40º",null,null,null,null,null,null,"40º",null,null,null,null,null,null,"40º",null,null,null,null,null,null,"40º",null,null,null,null,null,null,"40º"]

{"sheet":"nov2025","index":4,"n_rows":42,"n_cols":28,"rows_kept":42,"cut":false,"hidden":false,"merged":[[0,0,0,5],[0,7,0,12],[0,14,0,20],[0,22,0,27]]}
["05/11/2025 (QUARTA-FEIRA)",null,null,null,null,null,null,"12/11/2025 (QUARTA-FEIRA)",null,null,null,null,null,null,"20/11/2025 (QUINTA-FEIRA)",null,null,null,null,null,null,null,"26/11/2025 (QUARTA-FEIRA)"]
["POS.","PÁSSARO","PROPRIETÁRIO","ORIGEM","CANTOS","PONTOS",null,"POS.","PÁSSARO","PROPRIETÁRIO","ORIGEM","CANTOS","PONTOS",null,"POS.","PÁSSARO","PROPRIETÁRIO","ORIGEM","VASS.","CANTOS","PONTOS",null,"POS.","PÁSSARO","PROPRIETÁRIO","ORIGEM","CANTOS","PONTOS"]
["1º","BALINHA","WL FAMÍLIA MINGAL","PARAÍBA DO SUL",168,30,null,"1º","JÓ","ANDRÉ LUIS","PARAÍBA DO SUL",194,30,null,"1º","LEÃO BRANCO","CUNHA","CARATINGA",139,203,30,null,"1º","MAGNÍFICO","CH FAMÍLIA MINGAL","PARAÍBA DO SUL",267,30]
["2º","TRUQUE","REGINALDO","PETRÓPOLIS",167,28,null,"2º","FOGUETE","LEANDRO/GABRIEL","PARAÍBA DO SUL",185,28,null,"2º","GABIGOL","RAPHAEL/ROGÉRIO","MATIAS BARBOSA",112,189,28,null,"2º","GATILHO","PEDRO","JUIZ DE FORA",215,28]
["3º","PÉROLA NEGRA","ROMÁRIO OLIVEIRA","PETRÓPOLIS",167,26,null,"3º","BALINHA","WL FAMÍLIA MINGAL","PARAÍBA DO SUL",180,26,null,"3º","MEGAMENTE","FLÁVIO","PATY DO ALFERES",94,172,26,null,"3º","PANTERA NEGRA","PABLO","ITAIPAVA",182,26]
["4º","PANTERA NEGRA","PABLO","ITAIPAVA",159,24,null,"4º","PIVETE","GILSON/GUSTAVO","TRÊS RIOS/S. DUMONT",174,24,null,"4º","CHUCALHO DE COBRA","LUCIMAR/LUIZ HENRIQUE","TRÊS RIOS",83,166,24,null,"4º","RENEGADO","GABRIEL","PETRÓPOLIS",181,24]
["5º","762","DEIVID","JUIZ DE FORA",158,23,null,"5º","PANTERA NEGRA","PABLO","ITAIPAVA",152,23,null,"5º","PANTERA NEGRA","PABLO","ITAIPAVA",108,160,23,null,"5º","MAVERICK","ANDRÉ LUIS","PARAÍBA DO SUL",181,23]
["6º","TAURUS","HENRIQUE","ANTA",153,22,null,"6º","OURO FINO","LUCAS","TRÊS RIOS",152,22,null,"6º","PERIGO","JOANES","PARAÍBA DO SUL",126,153,22,null,"6º","V10","JÚNIOR PACHECO","TRÊS RIOS",180,22]
["7º","PODEROSO CHEFINHO","RODRIGO/BRUNO","PETRÓPOLIS",151,21,null,"7º","MAGO","CLÓVIS","TRÊS RIOS",152,21,null,"7º","FARAÓ","ANDRÉ LUIS","PARAÍBA DO SUL",129,150,21,null,"7º","BALINHA","WL FAMÍLIA MINGAL","PARAÍBA DO SUL",144,21]
["8º","É O AÇO","RODRIGO","VASSOURAS",150,20,null,"8º","BELGA","KLEBER SILVA","PETRÓPOLIS",136,20,null,"8º","FOGUETE","GABRIEL/LEANDRO","PARAÍBA DO SUL",114,149,20,null,"8º","IMPERADOR","LEANDRO/GABRIEL","PARAÍBA DO SUL",137,20]
["9º","RED BULL","JUNIN","JUIZ DE FORA",135,19,null,"9º","PODEROSO CHEFINHO","RODRIGO/BRUNO","PETRÓPOLIS",126,19,null,"9º","BALINHA","WL FAMÍLIA MINGAL","PARAÍBA DO SUL",126,145,19,null,"9º","GOKU","LEONARDO","SANTOS DUMONT",128,19]
["10º","PIVETE","GILSON/GUSTAVO","TRÊS RIOS/S. DUMONT",128,18,null,"10º","RARIDADE","CT ALPHA","PARAÍBA DO SUL",123,18,null,"10º","PODEROSO CHEFINHO","RODRIGO/BRUNO","PETRÓPOLIS",71,134,18,null,"10º","FOGUETE","LEANDRO/GABRIEL","PARAÍBA DO SUL",127,18]
["11º","MENINO DO MORRO","GABRIEL/VLADIMIR","PARAÍBA DO SUL",126,17,null,"11º","HERÓI DE GUERRA","RODRIGO/BRUNO","PETRÓPOLIS",122,17,null,"11º","FARRAPO DOIDO","JOÃO MARCOS","AREAL",93,130,17,null,"11º","DO BRONX","PABLO","PETRÓPOLIS",115,17]
["12º","PIRATA","ROMÁRIO OLIVEIRA","PETRÓPOLIS",125,16,null,"12º","DO BRONX","PABLO","PETRÓPOLIS",121,16,null,"12º","TREM","MARCO AURÉLIO","PARAÍBA DO SUL",83,129,16,null,"12º","EXPRESSO","RAUANI VALLE","TRÊS RIOS",115,16]
["13º","FOGUETE","LEANDRO/GABRIEL","PARAÍBA DO SUL",123,15,null,"13º","GARNIZE","PABLO","ITAIPAVA",121,15,null,"13º","DO BRONX","PABLO","PETRÓPOLIS",101,127,15,null,"13º","PRESTÍGIO","RUAN","PARAÍBA DO SUL",113,15]
["14º","RAGNAR","DANILO MOREIRA","TRÊS RIOS",122,14,null,"14º","TRUQUE","REGINALDO","PETRÓPOLIS",119,14,null,"14º","OURO FINO","LUCAS","TRÊS RIOS",81,118,14,null,"14º","TRUQUE","REGINALDO","PETRÓPOLIS",110,14]
["15º","BICO DE PRATA","GUSTAVO","PARAÍBA DO SUL",114,13,null,"15º","DUBAI","VALDO","TRÊS RIOS",119,13,null,"15º","MAGNÍFICO","CH FAMÍLIA MINGAL","PARAÍBA DO SUL",87,116,13,null,"15º","XODÓ","CLÓVIS","TRÊS RIOS",105,13]
["16º","NEYMAR","JOSÉ SÉRGIO","PARAÍBA DO SUL",107,null,null,"16º","BAIXARIA","FAMÍLIA HONORATO","PARAÍBA DO SUL",117,null,null,"16º","BAIANINHO","LUCAS","TRÊS RIOS",62,101,null,null,"16º","MAESTRO","CH FAMÍLIA MINGAL","PARAÍBA DO SUL",103]
["17º","BRUXO","GABRIEL MARTINS/RICARDINHO","PARAÍBA DO SUL",106,null,null,"17º","PARDAL","WL FAMÍLIA MINGAL","PARAÍBA DO SUL",107,null,null,"17º","MARGARINA","CLÁUDIO MÁRCIO","TRÊS RIOS",58,97,null,null,"17º","RAT","THIAGO RONYELLE","TRÊS RIOS",102]
["18º","MAGNÍFICO","CH FAMÍLIA MINGAL","PARAÍBA DO SUL",105,null,null,"18º","VARADÃO","RAPHAEL","MATIAS BARBOSA",104,null,null,"18º","ASTRO","DHACO","PARAÍBA DO SUL",104,94,null,null,"18º","GARGALHADA","CICINHO","PARAÍBA DO SUL",91]
["19º","TUBARÃO","RONYELLE","TRÊS RIOS",105,null,null,"19º","BISON","NATHAN","LEVY GASPARIAN",99,null,null,"19º","PRESTÍGIO","RUAN/LEANDRO","PARAÍBA DO SUL",84,94,null,null,"19º","ASTRO","FAMÍLIA MINGAL","PARAÍBA DO SUL",87]
["20º","DIGNO","JÚLIO CÉSAR","TRÊS RIOS",103,null,null,"20º","GAROTO","BRUNO","TRÊS RIOS",99,null,null,"20º","IMAGINÁRIO","FERNANDO SIMÃO","PETRÓPOLIS",72,91,null,null,"20º","MURALHA","RAPHAEL","MATIAS BARBOSA",84]
["21º","VENON","MURILO","TRÊS RIOS",103,null,null,"21º","SELVAGEM","HENRIQUE","TRÊS RIOS",97,null,null,"21º","BICO DE PRATA","GUSTAVO","PARAÍBA DO SUL",84,89,null,null,"21º","PATO DONALD","REGINALDO","PETRÓPOLIS",79]
["22º","RESISTENTE","JOSÉ SÉRGIO","PARAÍBA DO SUL",100,null,null,"22º","TAURUS","HENRIQUE","ANTA",89,null,null,"22º","REMI FILHO","RAFAEL","PARAÍBA DO SUL",71,79,null,null,"22º","FAIXA PRETA","GUSTAVO","PARAÍBA DO SUL",71]
["23º","MÍSTICO","SOLDADO","NOVA IGUAÇU",99,null,null,"23º","TUBARÃO","RONYELLE","TRÊS RIOS",88,null,null,"23º","FAIXA PRETA","GUSTAVO/DEIVID","PARAÍBA DO SUL",83,76,null,null,"23º","FAISKA","JOSÉ SÉRGIO","PARAÍBA DO SUL",58]
["24º","ABISMO","JHONATAS/GUSTAVO","PARAÍBA DO SUL",95,null,null,"24º","?","RAUANI VALLE","TRÊS RIOS",85,null,null,"24º","XODÓ","CLÓVIS/RODRIGO","TRÊS RIOS",95,75,null,null,"24º","PESADELO","HENRIQUE","ANTA",35]
["25º","POEKI","JAJA","JUIZ DE FORA",94,null,null,"25º","MAESTRO","CH FAMÍLIA MINGAL","PARAÍBA DO SUL",84,null,null,"25º","TOTÓ","GIBA","TRÊS RIOS",43,74,null,null,"25º","MUSTANG","JOSÉ SÉRGIO","PARAÍBA DO SUL",30]
["26º","XEQUE MATE","EULER","TRÊS RIOS",94,null,null,"26º","?","LEANDRO/RUAN","PARAÍBA DO SUL",80,null,null,"26º","CHICO BENTO","FLÁVIO","PATY DO ALFERES",79,50,null,null,"26º"]
["27º","THANOS","SILAS","TRÊS RIOS",91,null,null,"27º","RAT","THIAGO","TRÊS RIOS",80,null,null,"27º","RESISTENTE","JOSÉ SÉRGIO","PARAÍBA DO SUL",87,44,null,null,"27º"]
["28º","MURALHA","RAPHAEL","MATIAS BARBOSA",90,null,null,"28º","MÁGICO","EDGARD","TRÊS RIOS",76,null,null,"28º","SONIC","LORRAN","PETRÓPOLIS",64,26,null,null,"28º"]
["29º","VELOSTER","SOLDADO","NOVA IGUAÇU",86,null,null,"29º","IMPERADOR","GABRIEL","PETRÓPOLIS",69,null,null,"29º",null,null,null,null,null,null,null,"29º"]
["30º","INVASÃO","WATILA","JUIZ DE FORA",76,null,null,"30º","FÓRMULA 1","GILSON/GUSTAVO","TRÊS RIOS/S. DUMONT",62,null,null,"30º",null,null,null,null,null,null,null,"30º"]
["31º","LAMPIÃO","GABRIEL","PETRÓPOLIS",74,null,null,"31º","MAD","CH FAMÍLIA MINGAL","PARAÍBA DO SUL",56,null,null,"31º",null,null,null,null,null,null,null,"31º"]
["32º","CORUJA","KLEBER SILVA","PETRÓPOLIS",65,null,null,"32º","CABALLO SELVAGEM","GUSTAVO/GILSON","TRÊS RIOS/S. DUMONT",39,null,null,"32º",null,null,null,null,null,null,null,"32º"]
["33º","PANCADÃO","FILIPE PAVÃO","PETRÓPOLIS",65,null,null,"33º",null,null,null,null,null,null,"33º",null,null,null,null,null,null,null,"33º"]
["34º","GTA","FERNANDO","JUIZ DE FORA",60,null,null,"34º",null,null,null,null,null,null,"34º",null,null,null,null,null,null,null,"34º"]
["35º","RISADA","JOANES","PARAÍBA DO SUL",55,null,null,"35º",null,null,null,null,null,null,"35º",null,null,null,null,null,null,null,"35º"]
["36º","BOOBIE GOODY","EULER","TRÊS RIOS",51,null,null,"36º",null,null,null,null,null,null,"36º",null,null,null,null,null,null,null,"36º"]
["37º","STAR","ALEFE","TRÊS RIOS",38,null,null,"37º",null,null,null,null,null,null,"37º",null,null,null,null,null,null,null,"37º"]
["38º","TURBINA","DEIVID","JUIZ DE FORA",35,null,null,"38º",null,null,null,null,null,null,"38º",null,null,null,null,null,null,null,"38º"]
["39º",null,null,null,null,null,null,"39º",null,null,null,null,null,null,"39º",null,null,null,null,null,null,null,"39º"]
["40º",null,null,null,null,null,null,"40º",null,null,null,null,null,null,"40º",null,null,null,null,null,null,null,"40º"]

{"sheet":"dez2025","index":5,"n_rows":42,"n_cols":27,"rows_kept":42,"cut":false,"hidden":false,"merged":[[0,0,0,5],[0,7,0,12],[0,14,0,19],[0,21,0,26]]}
["03/12/2025 (QUARTA-FEIRA)",null,null,null,null,null,null,"10/12/2025 (QUARTA-FEIRA)",null,null,null,null,null,null,"17/12/2025 (QUARTA-FEIRA)",null,null,null,null,null,null,"24/12/2025 QUARTA-FEIRA)"]
["POS.","PÁSSARO","PROPRIETÁRIO","ORIGEM","CANTOS","PONTOS",null,"POS.","PÁSSARO","PROPRIETÁRIO","ORIGEM","CANTOS","PONTOS",null,"POS.","PÁSSARO","PROPRIETÁRIO","ORIGEM","CANTOS","PONTOS",null,"POS.","PÁSSARO","PROPRIETÁRIO","ORIGEM","CANTOS","PONTOS"]
["1º","51","DANIEL","JUIZ DE FORA",200,30,null,"1º","URSO NEGRO","JUNINHO PACHECO","TRÊS RIOS",210,30,null,"1º",null,null,null,null,30,null,"1º",null,null,null,null,30]
["2º","IMPERADOR","LEANDRO/GABRIEL","PARAÍBA DO SUL",170,28,null,"2º","FÉ","MARCÃO","JUIZ DE FORA",173,28,null,"2º",null,null,null,null,28,null,"2º",null,null,null,null,28]
["3º","NEXTEL","NATHAN","LEVY GASPARIAN",157,26,null,"3º","PANTERA NEGRA","PABLO","ITAIPAVA",170,26,null,"3º",null,null,null,null,26,null,"3º",null,null,null,null,26]
["4º","MAGNÍFICO","CH FAMÍLIA MINGAL","PARAÍBA DO SUL",152,24,null,"4º","REI DO FURDUNÇO","WILLIAN","TRÊS RIOS",165,24,null,"4º",null,null,null,null,24,null,"4º",null,null,null,null,24]
["5º","FORASTEIRO","WL FAMÍLIA MINGAL","PARAÍBA DO SUL",148,23,null,"5º","EXPRESSO","RAUANI VALLE","TRÊS RIOS",160,23,null,"5º",null,null,null,null,23,null,"5º",null,null,null,null,23]
["6º","ROMÁRIO","MÁRCIO","PARAÍBA DO SUL",147,22,null,"6º","DO BRONX","PABLO","ITAIPAVA",155,22,null,"6º",null,null,null,null,22,null,"6º",null,null,null,null,22]
["7º","REI DO FURDUNÇO","WILLIAN","TRÊS RIOS",147,21,null,"7º","FORASTEIRO","WL FAMÍLIA MINGAL","PARAÍBA DO SUL",154,21,null,"7º",null,null,null,null,21,null,"7º",null,null,null,null,21]
["8º","EL DOIDO","JONAS","TRÊS RIOS",145,20,null,"8º","FOGUETE","LEANDRO/GABRIEL","PARAÍBA DO SUL",154,20,null,"8º",null,null,null,null,20,null,"8º",null,null,null,null,20]
["9º","FOGUETE","LEANDRO/GABRIEL","PARAÍBA DO SUL",138,19,null,"9º","GARGALHADA","CICINHO","PARAÍBA DO SUL",151,19,null,"9º",null,null,null,null,19,null,"9º",null,null,null,null,19]
["10º","PANTERA NEGRA","PABLO","ITAIPAVA",136,18,null,"10º","BALINHA","WL FAMÍLIA MINGAL","PARAÍBA DO SUL",140,18,null,"10º",null,null,null,null,18,null,"10º",null,null,null,null,18]
["11º","JÓ","ANDRÉ LUIS","PARAÍBA DO SUL",134,17,null,"11º","PODEROSO CHEFINHO","RODRIGO/BRUNO","PETRÓPOLIS",132,17,null,"11º",null,null,null,null,17,null,"11º",null,null,null,null,17]
["12º","BALINHA","WL FAMÍLIA MINGAL","PARAÍBA DO SUL",133,16,null,"12º","ANIMAL","DANILO","TRÊS RIOS",132,16,null,"12º",null,null,null,null,16,null,"12º",null,null,null,null,16]
["13º","PRESTÍGIO","RUAN","PARAÍBA DO SUL",133,15,null,"13º","DELEGADO","KAUAN","PATY DO ALFERES",127,15,null,"13º",null,null,null,null,15,null,"13º",null,null,null,null,15]
["14º","CHARADA","UESLEI","PARAÍBA DO SUL",132,14,null,"14º","RAT","THIAGO/RONYELLE","TRÊS RIOS",125,14,null,"14º",null,null,null,null,14,null,"14º",null,null,null,null,14]
["15º","GARGALHADA","CICINHO","PARAÍBA DO SUL",131,13,null,"15º","VENENO","XANDI","?",120,13,null,"15º",null,null,null,null,13,null,"15º",null,null,null,null,13]
["16º","BESTEIRINHA","EULER","TRÊS RIOS",130,null,null,"16º","MAGNÍFICO","CH FAMÍLIA MINGAL","PARAÍBA DO SUL",119,null,null,"16º",null,null,null,null,null,null,"16º"]
["17º","COYOTE","CLODOALDO","TRÊS RIOS",127,null,null,"17º","IMPERADOR","LEANDRO/GABRIEL","PARAÍBA DO SUL",112,null,null,"17º",null,null,null,null,null,null,"17º"]
["18º","MAGO NEGRO","CLÓVIS/RODRIGO","TRÊS RIOS",124,null,null,"18º","TUBARÃO","RONYELLE","TRÊS RIOS",112,null,null,"18º",null,null,null,null,null,null,"18º"]
["19º","PETER PAN","RAFAEL","PARAÍBA DO SUL",122,null,null,"19º","NOVATO","LUCIMAR/LUIZ HENRIQUE","TRÊS RIOS",105,null,null,"19º",null,null,null,null,null,null,"19º"]
["20º","THOR","JOÃO VITOR/JANDERSON","TRÊS RIOS",114,null,null,"20º","CHARADA","UESLEI","PARAÍBA DO SUL",104,null,null,"20º",null,null,null,null,null,null,"20º"]
["21º","TUBARÃO","RONYELLE","TRÊS RIOS",110,null,null,"21º","NOVINHO","XEIA","PATY DO ALFERES",100,null,null,"21º",null,null,null,null,null,null,"21º"]
["22º","PIVETE","GUSTAVO/JHONATA","PARAÍBA DO SUL",109,null,null,"22º","ASTRO","CT LIMA","PARAÍBA DO SUL",99,null,null,"22º",null,null,null,null,null,null,"22º"]
["23º","PIT BULL","HENRIQUE","ANTA",103,null,null,"23º","GAGUINHO","JÚLIO","(?)",97,null,null,"23º",null,null,null,null,null,null,"23º"]
["24º","ARRASCAETA","HENRIQUE","PARAÍBA DO SUL",94,null,null,"24º","V8","SÉRGIO","PARAÍBA DO SUL",93,null,null,"24º",null,null,null,null,null,null,"24º"]
["25º","PICA PAU","FELIPE","TRÊS RIOS",93,null,null,"25º","FÓRMULA 1","BIDU","PATY DO ALFERES",90,null,null,"25º",null,null,null,null,null,null,"25º"]
["26º","PIVETE","ALAN","TRÊS RIOS",82,null,null,"26º","RISQUINHO","JOANES","PARAÍBA DO SUL",87,null,null,"26º",null,null,null,null,null,null,"26º"]
["27º","CORUJA","KLEBER SILVA","PETRÓPOLIS",79,null,null,"27º","REVELAÇÃO","ANTÔNIO MENEGUIT","CACHOEIRA DE MACACU",83,null,null,"27º",null,null,null,null,null,null,"27º"]
["28º","ASTERIX","RATINHO","VALENÇA",76,null,null,"28º","TRUQUE","REGINALDO","PETRÓPOLIS",82,null,null,"28º",null,null,null,null,null,null,"28º"]
["29º","FORA DA LEI","GILSON/GUSTAVO","TRÊS RIOS/S. DUMONT",74,null,null,"29º","FORJA","HENRIQUE MORAES","SÃO JOSÉ",71,null,null,"29º",null,null,null,null,null,null,"29º"]
["30º","SEDEX","NATHAN","LEVY GASPARIAN",74,null,null,"30º","SHELBY","UILIAN/ISAAC","TRÊS RIOS",68,null,null,"30º",null,null,null,null,null,null,"30º"]
["31º","LOCOMOTIVA","CLÓVIS/RODRIGO","TRÊS RIOS",71,null,null,"31º","SUB ZERO","ANDRÉ FREITAS","PETRÓPOLIS",65,null,null,"31º",null,null,null,null,null,null,"31º"]
["32º","THANOS","SILAS","TRÊS RIOS",70,null,null,"32º","ARRASCAETA","HENRIQUE","PARAÍBA DO SUL",65,null,null,"32º",null,null,null,null,null,null,"32º"]
["33º","ZORRO","VINÍCIUS","AREAL",60,null,null,"33º","FILHOTE","FAMÍLIA MINGAL/CT LIMA","PARAÍBA DO SUL",59,null,null,"33º",null,null,null,null,null,null,"33º"]
["34º","ARCANJO","MAYCON","TRÊS RIOS",50,null,null,"34º","ZORRO","VINÍCIUS","AREAL",56,null,null,"34º",null,null,null,null,null,null,"34º"]
["35º","BELGA","KLEBER SILVA","PETRÓPOLIS",26,null,null,"35º",null,null,null,null,null,null,"35º",null,null,null,null,null,null,"35º"]
["36º",null,null,null,null,null,null,"36º",null,null,null,null,null,null,"36º",null,null,null,null,null,null,"36º"]
["37º",null,null,null,null,null,null,"37º",null,null,null,null,null,null,"37º",null,null,null,null,null,null,"37º"]
["38º",null,null,null,null,null,null,"38º",null,null,null,null,null,null,"38º",null,null,null,null,null,null,"38º"]
["39º",null,null,null,null,null,null,"39º",null,null,null,null,null,null,"39º",null,null,null,null,null,null,"39º"]
["40º",null,null,null,null,null,null,"40º",null,null,null,null,null,null,"40º",null,null,null,null,null,null,"40º"]